Cogmind - Beta 9.2 @@@ ROGUE MODE // 2019.11.21 @ 21:20:41 Player: Cassie Rose Result: Destroyed by G-34 Mercenary with Small Laser Performance ------------- Evolutions (1) 500 Regions Visited (2) 400 Robots Destroyed (70) 350 Value Destroyed (1593) 1593 Prototype IDs (2) 40 Alien Tech Used (0) 0 Bonus (0) 0 TOTAL SCORE: 2883 Bonus ------- None Cogmind --------- Core Integrity 0/400 Matter 262/300 Energy 250/250 System Corruption 0% Temperature Cool (6) Movement Treading (180) Ox1 Location -9/Materials Parts ------- > --- POWER (1) -------- Ion Engine > --- PROPULSION (3) --- Light Treads > --- UTILITY (3) ------ Cooling System High-capacity Storage Unit Hacking Suite > --- WEAPON (2) ------- Light Assault Rifle > --- INVENTORY (12) --- Ion Engine Heat Sink Improved Heat Sink Cooling System Structural Scanner Improved Terrain Scanner Light Armor Plating Datajack Peak State ------------ > --- POWER ------------ Improved Ion Engine > --- PROPULSION ------- Light Treads Light Treads Light Treads > --- UTILITY ---------- Improved Heat Sink High-capacity Storage Unit Hacking Suite > --- WEAPON ----------- Beam Rifle Hammer > --- INVENTORY -------- Ion Engine Ion Engine Light Treads Heat Sink Structural Scanner Improved Terrain Scanner Light Armor Plating Light Armor Plating Datajack [Rating: 16] Favorites ----------- Power Ion Engine Engine Ion Engine Propulsion Aluminum Leg Treads Light Treads Leg Aluminum Leg Utility Hacking Suite Device Improved Heat Sink Storage High-capacity Storage Unit Hackware Hacking Suite Weapon Hammer Energy Gun EM Pulse Gun Ballistic Gun Light Assault Rifle Launcher EMP Blaster Special Weapon Plasma Cutter Impact Weapon Hammer Build | -11 -10 -9 ------- Run | Scr Mat Mat Slots Evolved 2 | . . 2 Power . | . . . Propulsion 1 | . . 1 Utility 1 | . . 1 Weapon . | . . . Parts Attached 64 | 8 32 24 Power 12 | 1 5 6 Engine 12 | 1 5 6 Core . | . . . Reactor . | . . . Propulsion 24 | 4 14 6 Treads 7 | 2 . 5 Leg 17 | 2 14 1 Wheel . | . . . Hover . | . . . Flight . | . . . Utility 12 | 1 5 6 Device 6 | . 2 4 Storage 5 | 1 3 1 Processor . | . . . Hackware 1 | . . 1 Protection . | . . . Artifact . | . . . Weapon 16 | 2 8 6 Energy Gun 7 | 1 2 4 Energy Cannon . | . . . Ballistic Gun 4 | 1 1 2 Ballistic Cannon . | . . . Launcher 2 | . 2 . Special Weapon 2 | . 2 . Impact Weapon 1 | . 1 . Slashing Weapon . | . . . Piercing Weapon . | . . . Special Melee Weapon . | . . . Unidentified Prototypes . | . . . Parts Lost 25 | . 8 17 Power 5 | . 1 4 Propulsion 7 | . 2 5 Utility 3 | . 1 2 Weapon 10 | . 4 6 Highest Loss Streak 4 | . 3 4 Average Slot Usage (%) 92 | . 93 90 Engine 10 | . 10 10 Treads 11 | . . 21 Leg 16 | . 27 4 Device 9 | . 7 11 Storage 15 | . 18 12 Hackware 4 | . . 9 Energy Gun 7 | . 6 7 Ballistic Gun 3 | . 3 3 Launcher 2 | . 5 . Special Weapon 2 | . 4 . Impact Weapon 8 | . 6 9 Naked Turns . | . . . Heaviest Build 45 | 11 27 45 Greatest Support 60 | 40 20 60 Greatest Overweight (x) 2 | 2 1 2 Average Overweight (x) . | . . . Largest Inventory Capacity 12 | 6 10 12 Average Capacity 9 | 5 7 11 Most Carried 11 | 3 8 11 Average Carried 6 | 2 6 7 Final Capacity 12 | 6 10 12 Final Carried 8 | 3 7 8 Class Distribution -------------------- 57% | Scavenger-Mutant 42% | Mutant Dominant Class ---------------- Mutant | -10/Materials Scavenger-Mutant | -9/Materials Resources | -11 -10 -9 ----------- Run | Scr Mat Mat Matter Collected 1098 | 307 557 234 Remotely . | . . . Salvage Created 2481 | 216 1198 1067 Parts 174 | 17 73 84 Haulers Intercepted 2 | . 2 . Recyclers Shooed 1 | . . 1 Parts Field Recycled . | . . . Retrieved Matter . | . . . Parts Self-Destructed . | . . . Prevented . | . . . Kills | -11 -10 -9 ------- Run | Scr Mat Mat Combat Hostiles Destroyed 53 | . 20 33 Guns 35 | . 6 29 Cannons 4 | . 4 . AOE 11 | . 9 2 Classes Destroyed 10 | 3 6 1 Worker 1 | 1 . . Builder 2 | . 1 1 Tunneler 4 | 4 . . Hauler 2 | . 2 . Recycler 5 | 1 2 2 Operator 1 | . 1 . Watcher 2 | . 2 . Swarmer 20 | . 2 18 Grunt 29 | . 18 11 Sentry 4 | . . 4 Best Kill Streak 6 | 3 6 5 Combat Bots Only 4 | . 3 4 Max Kills in Single Turn 2 | 1 2 1 Gunslinging . | . . . Exploded 2 | . 2 1 Melee . | . . . Uniques/NPCs Destroyed . | . . . Combat | -11 -10 -9 -------- Run | Scr Mat Mat Damage Taken 3243 | . 1406 1837 Core 626 | . 226 400 Absorbed by Shields . | . . . Core Remaining (%) 54 | 100 9 . Volleys Fired 243 | 12 88 143 Largest 2 | 2 2 2 Hottest 76 | 60 66 76 Shots Fired 303 | 21 133 149 Gun 252 | 21 82 149 Cannon . | . . . Launcher 27 | . 27 . Special 24 | . 24 . Kinetic 121 | 9 45 67 Thermal 83 | . 24 59 Explosive . | . . . Electromagnetic 99 | 12 64 23 Robot Hit Streak 13 | 5 9 13 Robot Miss Streak 5 | 3 5 4 Penetration Max . | . . . Secondary Targets 1 | . . 1 Max Gunslinging Chain 1 | . . 1 Shots Hit Robots 190 | 12 82 96 Core Hits 103 | 7 42 54 Critical Hits 5 | . 5 . Critical Kills 1 | . 1 . Critical Parts Destroyed 4 | . 4 . Melee Attacks 15 | . 2 13 Impact 15 | . 2 13 Slashing . | . . . Piercing . | . . . Sneak Attacks 1 | . . 1 Combat Hostiles . | . . . Follow-up Attacks . | . . . Damage Inflicted 3045 | 145 1614 1286 Guns 1921 | 145 699 1077 Cannons . | . . . Explosions 753 | . 683 70 Melee 174 | . 35 139 Ramming . | . . . Kinetic 804 | 26 401 377 Thermal 772 | . 197 575 Explosive 48 | . 48 . Electromagnetic 1247 | 119 933 195 Impact 174 | . 35 139 Slashing . | . . . Piercing . | . . . Highest Corruption 3 | . 3 . Average Corruption 2 | . 2 . Corruption Purged . | . . . Effects 11 | . 11 . Message Errors 7 | . 7 . Matter Fused 3 | . 3 . Heat Flow Errors 1 | . 1 . Overload Shots . | . . . Overflow Damage 86 | . 74 12 Projectiles . | . . . Explosions 78 | . 74 4 Melee 8 | . . 8 Knockbacks . | . . . Impact . | . . . Kinetic . | . . . Secondary . | . . . Self-Inflicted Damage 327 | . 327 . Shots 18 | . 18 . Rammed . | . . . Targets Rammed . | . . . Kicked . | . . . Crushed . | . . . Highest Temperature 298 | . 298 1 Average Temperature 89 | . 90 1 Received Heat Transfer 936 | . 552 384 Effects 1 | . 1 . Energy Bleed 1 | . 1 . Siege Activations . | . . . Robots Corrupted 1 | . 1 . Combat Hostiles 1 | . 1 . Parts Fried 5 | . 4 1 Impact Corruptions 3 | . . 3 Robots Melted . | . . . Combat Hostiles . | . . . Parts Melted 6 | . 5 1 Heat Transferred 2011 | . 666 1345 Parts Sabotaged . | . . . Parts Stolen . | . . . Parts Stripped . | . . . Power Chain Reactions 3 | . 2 1 Missiles Intercepted . | . . . Alert | -11 -10 -9 ------- Run | Scr Mat Mat Peak Influence 342 | 30 342 245 Average Influence 131 | 14 153 124 Maximum Alert Level 1 | . 1 1 Low Security (%) 78 | 100 72 81 Level 1 21 | . 27 18 Level 2 . | . . . Level 3 . | . . . Level 4 . | . . . Level 5 . | . . . High Security . | . . . Max Security . | . . . Squads Dispatched 7 | . 5 2 Investigation 4 | . 2 2 Extermination . | . . . Reinforcement 3 | . 3 . Assault . | . . . Garrison . | . . . Intercept . | . . . Construction Impeded . | . . . Haulers Reinforced . | . . . Stealth | -11 -10 -9 --------- Run | Scr Mat Mat Distress Signals 2 | . . 2 Communications Jammed . | . . . Distress Signals . | . . . Times Spotted 88 | . 38 50 Peak Tracking Total 5 | . 5 4 Tactical Retreats 15 | . 10 5 Traps | -11 -10 -9 ------- Run | Scr Mat Mat Traps Triggered 1 | . 1 . Indirectly . | . . . Trap Hack Attempts . | . . . Triggered . | . . . Disarmed . | . . . Reprogrammed . | . . . Reused . | . . . Traps Extracted . | . . . Installed . | . . . Triggered 1 | . 1 . Machines | -11 -10 -9 ---------- Run | Scr Mat Mat Machines Disabled 8 | . 8 . Max in Single Turn 2 | . 2 . Machines Sabotaged . | . . . Garrisons Compromised . | . . . Overloaded Fab Kills . | . . . Fab Network Shutdowns . | . . . Hacking | -11 -10 -9 --------- Run | Scr Mat Mat Machines Accessed 6 | . 3 3 Terminals 6 | . 3 3 Fabricators . | . . . Repair Stations . | . . . Recycling Units . | . . . Scanalyzers . | . . . Garrison Access . | . . . Total Hacks 19 | . 11 8 Successful 8 | . 4 4 Failed 11 | . 7 4 Catastrophic 1 | . . 1 Database Lockouts . | . . . Manual 14 | . 7 7 Terminals 19 | . 11 8 Fabricators . | . . . Repair Stations . | . . . Recycling Units . | . . . Scanalyzers . | . . . Garrison Access . | . . . Terminal Hacks 4 | . 2 2 Prototype ID Bank 1 | . . 1 Alert Level 1 | . 1 . Unreport Threat 2 | . 1 1 Fabricator Hacks . | . . . Repair Station Hacks . | . . . Recycling Unit Hacks . | . . . Scanalyzer . | . . . Garrison Access Hacks . | . . . Unauthorized Hacks 13 | . 7 6 Terminals 4 | . 2 2 Botnet 4 | . 2 2 Fabricators . | . . . Repair Stations . | . . . Recycling Units . | . . . Scanalyzers . | . . . Garrison Access . | . . . Data Cores Recovered . | . . . Used . | . . . Hacking Detections 6 | . 3 3 Full Trace Events 3 | . 1 2 Feedback Events . | . . . Feedback Blocked . | . . . Robot Schematics Acquired . | . . . Robots Built . | . . . Matter . | . . . Time . | . . . Total Robot Build Rating . | . . . Part Schematics Acquired . | . . . Parts Built . | . . . Matter . | . . . Time . | . . . Total Part Build Rating . | . . . Parts Repaired . | . . . Time . | . . . Parts Recycled . | . . . Recycled Matter . | . . . Retrieved Matter . | . . . Retrieved Components . | . . . Parts Scanalyzed . | . . . Part Schematics Acquired . | . . . Parts Damaged . | . . . Bothacking | -11 -10 -9 ------------ Run | Scr Mat Mat Used RIF Installer . | . . . Robots Hacked . | . . . Non-combat . | . . . Combat . | . . . Robot Hacks Applied . | . . . Relay Couplers Released . | . . . Robots Rewired . | . . . Allies Hacked . | . . . Hacks Repelled . | . . . Allies | -11 -10 -9 -------- Run | Scr Mat Mat Total Allies . | . . . Largest Group . | . . . Highest-Rated Group . | . . . Highest-Rated Ally . | . . . Total Orders . | . . . Ally Attacks . | . . . Total Damage . | . . . Kills . | . . . Allies Corrupted . | . . . Allies Melted . | . . . Intel | -11 -10 -9 ------- Run | Scr Mat Mat Robot Analysis Total . | . . . Derelict Logs Recovered . | . . . Drone Launches . | . . . Drone Recoveries . | . . . Exploration | -11 -10 -9 ------------- Run | Scr Mat Mat Turns Passed 2891 | 171 1351 1369 Spaces Moved 1369 | 97 703 569 Core 5 | 5 . . Treads 467 | 9 . 458 Legs 897 | 83 703 111 Wheels . | . . . Hover . | . . . Flight . | . . . Fastest Speed 50 | 50 120 150 Average Speed 145 | 122 130 167 Slowest Speed 200 | 160 150 200 Overloaded Moves . | . . . Propulsion Burnouts . | . . . Robots Hopped . | . . . Cave-ins Triggered . | . . . Exploration Rate (%) 48 | 6 96 43 Regions Visited 2 Branch Regions . Pre-discovered Areas . | . . . Known Exits Taken . | . . . Unknown Exits Taken 2 | 1 1 . Scrap Searched . | . . . Spaces Dug . | . . . Terrain Destroyed 44 | . 41 3 Melee . | . . . Projectile . | . . . AOE 44 | . 41 3 Actions | -11 -10 -9 --------- Run | Scr Mat Mat Total 1939 | 129 979 831 Wait 161 | . 108 53 Move 1367 | 96 702 569 Hop . | . . . Pick Up 60 | 11 26 23 Fast Attach 1 | . 1 . Attach 34 | 8 10 16 Detach . | . . . Swap 29 | . 21 8 Drop 29 | 2 21 6 Fire 243 | 12 88 143 Melee 15 | . 2 13 Ram . | . . . Kick . | . . . Crush . | . . . Escape Stasis . | . . . Rewire . | . . . Trap . | . . . Miscellaneous . | . . . Route ------- -11/Scrapyard -10/Materials (discovered 5 exits: *Mat x3 / [*Min x2]) -9/Materials (discovered 2 exits: [*Min x2]) History --------- Turn | Location | Event 8 | -11/Scrapyard | Discovered new exit (range 15) 172 | -11/Scrapyard | Entered Materials 310 | -10/Materials | Build established: Mutant 349 | -10/Materials | Discovered new exit (range 11) 555 | -10/Materials | Discovered new exit (range 3) 627 | -10/Materials | Core integrity fell below 50% 764 | -10/Materials | Discovered new exit (range 8) 783 | -10/Materials | Build established: Scavenger-Mutant 964 | -10/Materials | Lost 3 parts (1p1n1w) 984 | -10/Materials | Discovered new exit (range 11) 1243 | -10/Materials | Build established: Mutant 1248 | -10/Materials | Core integrity fell below 20% 1334 | -10/Materials | Discovered new exit (range 3) 1523 | -10/Materials | Entered another Materials area 1523 | -9/Materials | Evolved 2 slots: Propulsion x1, Utility x1 1598 | -9/Materials | Lost 4 parts (1p1n1u1w) 1724 | -9/Materials | Discovered new exit (range 9) 2056 | -9/Materials | Build established: Scavenger-Mutant 2279 | -9/Materials | Core integrity fell below 50% 2514 | -9/Materials | Discovered new exit (range 9) 2756 | -9/Materials | Lost 3 parts (2n1w) 2841 | -9/Materials | Core integrity fell below 20% 2884 | -9/Materials | Lost 3 parts (1p2w) 2892 | -9/Materials | Destroyed by G-34 Mercenary with Small Laser Last Messages --------------- 02813_ K-01 Serf cleans the Atomic Centrifuge. 02828_ C-30 ARC bursts open, deploying its payload. 02828_ S-10 Pest unfolds itself. 02828_ Door malfunctions. 02829_ Lgt. Assault Rifle destroyed. 02837_ U-05 Engineer repairs door. 02838_ Beam Rifle destroyed. 02843_ S-10 Pest destroyed. 02845_ K-01 Serf collects debris. 02853_ Imp. Ion Engine destroyed. 02855_ S-10 Pest destroyed. 02856_ K-01 Serf collects debris. 02857_ S-10 Pest destroyed. 02858_ K-01 Serf collects debris. 02862_ K-01 Serf cleans the Material Compactor. 02862_ K-01 Serf collects debris. 02863_ S-10 Pest destroyed. 02865_ K-01 Serf collects debris. 02868_ K-01 Serf cleans the Material Compactor. 02871_ W-16 Scout sends out distress signal. Map ----- +----------------------------------------------------+ | ?????# # ! ## #######?# #"" | | ###### ###+#############+### #?# # | | "%" T ### # | | % % + # | | % =### # | | ###### ###+#### %[?# ## | | ?????# # %! # % "## #?# | | ?????# # = # #######+####### | | ?????# # % # """ """ """ | | ?????# # !== # """ """ """ | | ?????# # # """ """ """ | | ###### # # u ###### ####+## | | # """ # #????# # | | # Y" ## %########????# # | | # """ ## #???????????# # "" | | "" " " # ## #?########### # "T !! | | "" "R" ######## ==% #?# # # "" ! | | "" """ %*== ### # # | | " =*%[ / # ## #### | | ! "%" =% %%### + ###???? | | ##########+########## #?# # #?????? | | #?????# #????# #?# #####?????? | | ## #?????# #????#u #?# #?????????? | | ?# #?????# """ #????# #?# #?????????? | | ?# #?????#""""" #????# #?###########?????????? | | ?# #?????#""""" #????# @ #?????????????????????? | | ?# #?????#""""" #????# k #?????????????????????? | | ?# #?????# """ #???# k #????????????????????? | | ?# #?????# #???# k g#????????????????????? | | ?#%#?????# *%! #???# T ????????????????????? | | ## ###???###/######???# ##???????????????????? | | =% ####### ###??????# #????????????????????? | | %* ##########u###????????????????????? | | + ?????????????????????? | | != #######??"" ??????????????????????? | | ##+####+#######????"""??????????????????????? | | ##+### # #??????"??????????????????????? | | # "" # "" #?????????????????????????????? | | # "" # """ #?????????????????????????????? | | """ # "T # S" #?????????????????????????????? | | """ [# "" # #?????????????????????????????? | | """ # "" # """ #?????????????????????????????? | | !# # """ #?????????????????????????????? | | ###### # """ #?????????????????????????????? | | ?????# # #?????????????????????????????? | | ?????###########?###?????????????????????????????? | | ?????????????????????????????????????????????????? | | ?????????????????????????????????????????????????? | | ?????????????????????????????????????????????????? | | ?????????????????????????????????????????????????? | +----------------------------------------------------+ Best States ------------- Heat Dissipation 50 Energy Generation 12 Energy Capacity 450 Matter Stores 300 Matter Capacity 300 Sight Range 16 Robot Scan Range 10 Terrain Scan Range 16 Terrain Scan Density 10 Evasion (%) 40 Recoil Reduction 3 Offensive Hacking 10 Item Schematics ----------------- None Robot Schematics ------------------ None Fabricated ------------ Nothing Alien Tech Used ----------------- None Achievements -------------- None Challenges ------------ None Game ------ Seed TeslaRegenerativeShredder Manual? 0 Play Time 00:34:51 Cumulative 34.9 hours Start 2019.11.21 @ 20:40:35 End 2019.11.21 @ 21:20:41 Sessions 1 Manual Loads 0 Difficulty Rogue Special Mode None Game No. 47 Rogue 47 Adventurer 0 Explorer 0 Win Type - Total 0 Types 0/0/0/0/0/0/0 Lore% 21 Gallery% 19 Achievement% 20 Wizard Run 0 Options --------- ASCII 0 Keyboard 0 Movement Mouse Keybinds 0 Fullscreen 1 Font 18/X11 Map View 76x50 Tactical HUD 1 Map Filters NONE Filters LOW_CONTRAST(13,24,33) Steam 1 RUN: 43512af9-08d3-4b3e-8628-cd9d9f1130e3